[Event "Asian Amateur Rapid 2024"]
[Site "Al Ain"]
[Date "2024.12.15"]
[Round "3.15"]
[White "Ebenezer, Joseph"]
[Black "Gong, Bonuonuo"]
[Result "0-1"]
[ECO "D02"]
[WhiteElo "1993"]
[BlackElo "1685"]
[Annotator "RC"]
[PlyCount "40"]
[EventDate "2024.12.15"]
[EventType "swiss"]
[EventCountry "UAE"]
[SourceTitle "playchess.com"]
[Source "ChessBase"]
[SourceQuality "1"]
[TimeControl "900+10"]

1. d4 {[%emt 0:00:03]} Nf6 {[%emt 0:00:01]} 2. Nf3 {[%emt 0:00:01]} d5 {[%emt 0:00:17]} 3. g3 {[%emt 0:00:05]} c5 {[%emt 0:00:03]} 4. dxc5 {[%emt 0:00:30]} Nc6 {[%emt 0:00:01]} 5. Bg2 {[%emt 0:00:01]} e5 {[%emt 0:00:05]} 6. O-O {[%emt 0:00:35]} Bxc5 {[%emt 0:15:43]} 7. c4 {[%emt 0:00:17]} Be6 {[%emt 0:00:00]} 8. Qb3 {[%emt 0:01:19]} Qb6 {[%emt 0:00:00]} 9. Nbd2 {[%emt 0:00:17]} O-O {[%emt 0:00:00]} 10. e3 {[%emt 0:00:19]} dxc4 {[%emt 0:00:00]} 11. Nxc4 {[%emt 0:00:11]} Qa6 {[%emt 0:00:00]} 12. Nfd2 {[%emt 0:00:36]} b5 {[%emt 0:00:00]} 13. Bxc6 {[%emt 0:00:09]} Qxc6 {[%emt 0:00:00]} 14. Nxe5 {[%emt 0:00:08]} Qd6 {[%emt 0:00:00]} 15. Qc3 {[%emt 0:00:42]} b4 {[%emt 0:00:00]} 16. Qd3 {[%emt 0:00:51]} Qxe5 {[%emt 0:00:00]} 17. Nf3 {[%emt 0:00:11]} Qd5 {[%emt 0:00:00]} 18. Qe2 {[%emt 0:00:15]} Bg4 {[%emt 0:00:00]} 19. e4 {[%emt 0:00:06]} Qh5 {[%emt 0:00:00]} 20. e5 {[%emt 0:00:08]} Bxf3 {[%emt 0:00:00]} 0-1

[Event "Asian Amateur Rapid 2024"]
[Site "Al Ain"]
[Date "2024.12.15"]
[Round "3.16"]
[White "Hayder, Hassan Shyaa"]
[Black "Obado, Sean Adrich"]
[Result "1/2-1/2"]
[ECO "B22"]
[WhiteElo "1991"]
[BlackElo "1605"]
[Annotator "RC"]
[PlyCount "144"]
[EventDate "2024.12.15"]
[EventType "swiss"]
[EventCountry "UAE"]
[SourceTitle "playchess.com"]
[Source "ChessBase"]
[SourceQuality "1"]
[TimeControl "900+10"]

1. e4 {[%emt 0:00:04]} c5 {[%emt 0:00:04]} 2. Nf3 {[%emt 0:00:01]} e6 {[%emt 0:00:02]} 3. c3 {[%emt 0:00:02]} d5 {[%emt 0:00:09]} 4. exd5 {[%emt 0:00:03]} exd5 {[%emt 0:00:01]} 5. d4 {[%emt 0:00:01]} cxd4 {[%emt 0:00:45]} 6. Nxd4 {[%emt 0:00:14]} Nf6 {[%emt 0:00:15]} 7. Bb5+ {[%emt 0:00:08]} Bd7 {[%emt 0:00:05]} 8. O-O {[%emt 0:00:09]} Be7 {[%emt 0:01:19]} 9. Nd2 {[%emt 0:00:55]} O-O {[%emt 0:00:25]} 10. N2f3 {[%emt 0:00:06]} Nc6 {[%emt 0:00:45]} 11. Re1 {[%emt 0:00:05]} Nxd4 {[%emt 0:01:20]} 12. Nxd4 {[%emt 0:00:05]} Bxb5 {[%emt 0:00:02]} 13. Nxb5 {[%emt 0:00:02]} Ne4 {[%emt 0:00:23]} 14. f3 {[%emt 0:00:47]} Bc5+ {[%emt 0:02:59]} 15. Nd4 {[%emt 0:00:09]} Nd6 {[%emt 0:00:24]} 16. b4 {[%emt 0:01:40]} Bb6 {[%emt 0:00:08]} 17. Be3 {[%emt 0:00:25]} Rc8 {[%emt 0:00:15]} 18. Qd3 {[%emt 0:00:06]} Nc4 {[%emt 0:00:31]} 19. Bf2 {[%emt 0:00:46]} Qc7 {[%emt 0:01:00]} 20. Re2 {[%emt 0:01:44]} Ne5 {[%emt 0:00:46]} 21. Qe3 {[%emt 0:00:17]} Ng6 {[%emt 0:00:09]} 22. Rc1 {[%emt 0:00:48]} Nf4 {[%emt 0:00:25]} 23. Rec2 {[%emt 0:00:11]} Rfe8 {[%emt 0:00:16]} 24. Qd2 {[%emt 0:00:11]} Ne6 {[%emt 0:04:12]} 25. Nxe6 {[%emt 0:01:48]} Bxf2+ {[%emt 0:00:45]} 26. Qxf2 {[%emt 0:00:07]} Rxe6 {[%emt 0:00:12]} 27. Qxa7 {[%emt 0:00:23]} Rh6 {[%emt 0:00:31]} 28. g3 {[%emt 0:00:24]} Rb6 {[%emt 0:00:46]} 29. Qa5 {[%emt 0:00:42]} Qc6 {[%emt 0:00:35]} 30. Rd2 {[%emt 0:00:14]} Rb5 {[%emt 0:00:07]} 31. Qa4 {[%emt 0:00:48]} Qb6+ {[%emt 0:00:10]} 32. Kg2 {[%emt 0:00:26]} h6 {[%emt 0:00:07]} 33. Qb3 {[%emt 0:00:07]} Rxb4 {[%emt 0:00:21]} 34. Qxb4 {[%emt 0:00:32]} Qxb4 {[%emt 0:00:01]} 35. cxb4 {[%emt 0:00:02]} Rxc1 {[%emt 0:00:02]} 36. Rxd5 {[%emt 0:00:01]} Rc2+ {[%emt 0:00:36]} 37. Kh3 {[%emt 0:00:01]} Rxa2 {[%emt 0:00:01]} 38. Rd8+ {[%emt 0:00:01]} Kh7 {[%emt 0:00:01]} 39. Rd7 {[%emt 0:00:00]} Kg6 {[%emt 0:00:04]} 40. Rxb7 {[%emt 0:00:04]} Rb2 {[%emt 0:00:04]} 41. g4 {[%emt 0:00:24]} Kf6 {[%emt 0:00:42]} 42. Kg3 {[%emt 0:00:03]} Rb3 {[%emt 0:00:05]} 43. h4 {[%emt 0:00:11]} g5 {[%emt 0:00:17]} 44. h5 {[%emt 0:00:28]} Rb2 {[%emt 0:00:12]} 45. b5 {[%emt 0:00:03]} Kg7 {[%emt 0:00:07]} 46. b6 {[%emt 0:00:07]} Kf6 {[%emt 0:00:03]} 47. Rb8 {[%emt 0:00:31]} Kg7 {[%emt 0:00:14]} 48. Kh3 {[%emt 0:00:04]} Kf6 {[%emt 0:00:08]} 49. b7 {[%emt 0:00:22]} Kg7 {[%emt 0:00:08]} 50. Kg3 {[%emt 0:00:04]} Rb6 {[%emt 0:00:10]} 51. Kf2 {[%emt 0:00:03]} Rb3 {[%emt 0:00:03]} 52. Ke2 {[%emt 0:00:04]} Kf6 {[%emt 0:00:09]} 53. Rh8 {[%emt 0:00:32]} Rxb7 {[%emt 0:00:01]} 54. Rxh6+ {[%emt 0:00:02]} Kg7 {[%emt 0:00:07]} 55. Ra6 {[%emt 0:00:05]} Re7+ {[%emt 0:00:14]} 56. Kf2 {[%emt 0:00:10]} Re8 {[%emt 0:00:30]} 57. f4 {[%emt 0:00:49]} Re4 {[%emt 0:00:12]} 58. fxg5 {[%emt 0:00:57]} Rxg4 {[%emt 0:00:04]} 59. Ra5 {[%emt 0:00:04]} f6 {[%emt 0:00:18]} 60. Ra7+ {[%emt 0:00:08]} Kf8 {[%emt 0:00:09]} 61. g6 {[%emt 0:00:03]} Rg5 {[%emt 0:00:09]} 62. Rh7 {[%emt 0:00:04]} Kg8 {[%emt 0:00:02]} 63. Kf3 {[%emt 0:00:04]} Rf5+ {[%emt 0:00:11]} 64. Ke4 {[%emt 0:00:06]} Rg5 {[%emt 0:00:20]} 65. Kf4 {[%emt 0:00:06]} Kf8 {[%emt 0:00:02]} 66. Ke4 {[%emt 0:01:50]} Kg8 {[%emt 0:00:08]} 67. Kf4 {[%emt 0:01:07]} Kf8 {[%emt 0:00:03]} 68. h6 {[%emt 0:00:50]} Rxg6 {[%emt 0:00:05]} 69. Kf5 {[%emt 0:00:01]} Rg1 {[%emt 0:00:18]} 70. Ra7 {[%emt 0:00:27]} Kg8 {[%emt 0:00:16]} 71. Kxf6 {[%emt 0:00:12]} Rf1+ {[%emt 0:00:01]} 72. Kg6 {[%emt 0:00:02]} Rg1+ {[%emt 0:00:02]} 1/2-1/2

[Event "Asian Amateur Rapid 2024"]
[Site "Al Ain"]
[Date "2024.12.15"]
[Round "3.17"]
[White "Ibrahim Imran Saeed"]
[Black "Khalifah, Khaled"]
[Result "0-1"]
[ECO "B28"]
[WhiteElo "1681"]
[BlackElo "1962"]
[Annotator "RC"]
[PlyCount "54"]
[EventDate "2024.12.15"]
[EventType "swiss"]
[EventCountry "UAE"]
[SourceTitle "playchess.com"]
[Source "ChessBase"]
[SourceQuality "1"]
[TimeControl "900+10"]

1. e4 {[%emt 0:00:02]} c5 {[%emt 0:00:22]} 2. Nf3 {[%emt 0:00:06]} a6 {[%emt 0:00:00]} 3. d4 {[%emt 0:00:03]} cxd4 {[%emt 0:00:01]} 4. Nxd4 {[%emt 0:00:02]} e5 {[%emt 0:00:01]} 5. Nf3 {[%emt 0:00:26]} Nf6 {[%emt 0:00:04]} 6. Nc3 {[%emt 0:00:02]} Bb4 {[%emt 0:00:54]} 7. Bd2 {[%emt 0:01:07]} Nc6 {[%emt 0:00:12]} 8. Bd3 {[%emt 0:00:19]} O-O {[%emt 0:01:05]} 9. O-O {[%emt 0:00:03]} Bxc3 {[%emt 0:02:08]} 10. Bxc3 {[%emt 0:00:02]} Re8 {[%emt 0:00:01]} 11. Re1 {[%emt 0:01:27]} b5 {[%emt 0:00:36]} 12. Qd2 {[%emt 0:00:41]} Qb6 {[%emt 0:01:04]} 13. a3 {[%emt 0:00:48]} h6 {[%emt 0:00:28]} 14. Nh4 {[%emt 0:00:56]} d6 {[%emt 0:01:13]} 15. Bf1 {[%emt 0:00:23]} Be6 {[%emt 0:00:26]} 16. Rad1 {[%emt 0:01:14]} Rad8 {[%emt 0:00:03]} 17. Kh1 {[%emt 0:00:20]} Ng4 {[%emt 0:00:23]} 18. Re2 {[%emt 0:00:44]} Bc4 {[%emt 0:00:02]} 19. Rde1 {[%emt 0:01:05]} d5 {[%emt 0:00:44]} 20. exd5 {[%emt 0:01:45]} Rxd5 {[%emt 0:00:02]} 21. Qc1 {[%emt 0:00:26]} Bxe2 {[%emt 0:00:09]} 22. Rxe2 {[%emt 0:00:14]} Nxf2+ {[%emt 0:00:02]} 23. Rxf2 {[%emt 0:00:33]} Qxf2 {[%emt 0:00:02]} 24. Nf3 {[%emt 0:00:06]} Red8 {[%emt 0:00:01]} 25. Qe1 {[%emt 0:01:12]} Qxe1 {[%emt 0:00:02]} 26. Bxe1 {[%emt 0:00:02]} e4 {[%emt 0:00:02]} 27. Ng1 {[%emt 0:04:08]} Rd1 {[%emt 0:00:03]} 0-1

[Event "Asian Amateur Rapid 2024"]
[Site "Al Ain"]
[Date "2024.12.15"]
[Round "3.18"]
[White "Chekanov, Timur"]
[Black "Kanev, Evgeny"]
[Result "1-0"]
[ECO "B09"]
[WhiteElo "1865"]
[BlackElo "1785"]
[Annotator "NA RC"]
[PlyCount "47"]
[EventDate "2024.12.15"]
[EventType "swiss"]
[EventCountry "UAE"]
[SourceTitle "playchess.com"]
[Source "ChessBase"]
[SourceQuality "1"]
[TimeControl "900+10"]

1. e4 {[%emt 0:00:01]} d6 {[%emt 0:00:01]} 2. d4 {[%emt 0:00:02]} Nf6 {[%emt 0:00:01]} 3. Nc3 {[%emt 0:00:01]} g6 {[%emt 0:00:01]} 4. f4 {[%emt 0:00:01]} Bg7 {[%emt 0:00:01]} 5. Nf3 {[%emt 0:00:02]} O-O {[%emt 0:00:02]} 6. Bd3 {[%emt 0:00:05]} Nfd7 {[%emt 0:00:50]} 7. O-O {[%emt 0:00:47]} e5 {[%emt 0:00:22]} 8. Be3 {[%emt 0:02:02]} Nc6 {[%emt 0:00:58]} 9. fxe5 {[%emt 0:00:17]} dxe5 {[%emt 0:00:08]} 10. d5 {[%emt 0:00:02]} Nd4 {[%emt 0:00:16]} 11. Ne2 {[%emt 0:01:38]} c5 {[%emt 0:04:04]} 12. c3 {[%emt 0:01:01]} Nxf3+ {[%emt 0:00:25]} 13. Rxf3 {[%emt 0:00:03]} b6 {[%emt 0:00:08]} 14. Qc2 {[%emt 0:00:22]} Nf6 {[%emt 0:00:25]} 15. Raf1 {[%emt 0:05:21]} Nxe4 {[%emt 0:01:51]} 16. Bxe4 {[%emt 0:00:17]} f5 {[%emt 0:00:01]} 17. d6 {[%emt 0:00:48]} fxe4 {[%emt 0:00:03]} 18. Rxf8+ {[%emt 0:00:22]} Bxf8 {[%emt 0:00:01]} 19. Qxe4 {[%emt 0:00:02]} Bf5 {[%emt 0:00:14]} 20. Qd5+ {[%emt 0:00:28]} Kh8 {[%emt 0:01:47]} 21. Bg5 {[%emt 0:01:35]} Qe8 {[%emt 0:01:47]} 22. Rxf5 {[%emt 0:00:38]} gxf5 {[%emt 0:00:36]} 23. d7 {[%emt 0:00:03]} Qg6 {[%emt 0:01:13]} 24. Qxa8 {[%emt 0:00:17]} 1-0

[Event "Asian Amateur Rapid 2024"]
[Site "Al Ain"]
[Date "2024.12.15"]
[Round "3.19"]
[White "Lee, Onbin"]
[Black "Sharma Pankaj"]
[Result "0-1"]
[ECO "C42"]
[WhiteElo "1686"]
[BlackElo "1861"]
[Annotator "NA RC"]
[PlyCount "94"]
[EventDate "2024.12.15"]
[EventType "swiss"]
[EventCountry "UAE"]
[SourceTitle "playchess.com"]
[Source "ChessBase"]
[SourceQuality "1"]
[TimeControl "900+10"]

1. e4 {[%emt 0:00:02]} e5 {[%emt 0:00:07]} 2. Nf3 {[%emt 0:00:03]} Nf6 {[%emt 0:00:02]} 3. Nxe5 {[%emt 0:00:02]} d6 {[%emt 0:00:01]} 4. Nf3 {[%emt 0:00:02]} Nxe4 {[%emt 0:00:01]} 5. d4 {[%emt 0:00:01]} d5 {[%emt 0:00:03]} 6. Bd3 {[%emt 0:00:01]} Nd6 {[%emt 0:00:02]} 7. O-O {[%emt 0:00:09]} Be7 {[%emt 0:00:01]} 8. Ne5 {[%emt 0:00:47]} O-O {[%emt 0:00:38]} 9. Qh5 {[%emt 0:01:19]} f5 {[%emt 0:00:07]} 10. c4 {[%emt 0:01:12]} dxc4 {[%emt 0:00:21]} 11. Nxc4 {[%emt 0:00:06]} g6 {[%emt 0:00:03]} 12. Qf3 {[%emt 0:00:51]} Nc6 {[%emt 0:00:02]} 13. Bh6 {[%emt 0:00:31]} Re8 {[%emt 0:01:04]} 14. Re1 {[%emt 0:03:31]} Nf7 {[%emt 0:01:04]} 15. Be3 {[%emt 0:02:02]} Bf6 {[%emt 0:01:32]} 16. Nc3 {[%emt 0:02:22]} Nxd4 {[%emt 0:01:16]} 17. Bxd4 {[%emt 0:00:20]} Rxe1+ {[%emt 0:00:02]} 18. Rxe1 {[%emt 0:00:03]} Bxd4 {[%emt 0:00:19]} 19. Qd5 {[%emt 0:00:26]} Qxd5 {[%emt 0:01:14]} 20. Nxd5 {[%emt 0:00:35]} c6 {[%emt 0:00:20]} 21. Re8+ {[%emt 0:00:12]} Kg7 {[%emt 0:00:03]} 22. Ne7 {[%emt 0:00:09]} b5 {[%emt 0:01:23]} 23. Na5 {[%emt 0:00:02]} Bb7 {[%emt 0:02:33]} 24. Rxa8 {[%emt 0:00:18]} Bxa8 {[%emt 0:00:01]} 25. Nexc6 {[%emt 0:01:12]} Bxb2 {[%emt 0:00:06]} 26. Bxb5 {[%emt 0:00:10]} Bc3 {[%emt 0:00:03]} 27. Nb3 {[%emt 0:00:32]} a6 {[%emt 0:01:19]} 28. Ba4 {[%emt 0:00:02]} Bb7 {[%emt 0:00:42]} 29. Nc5 {[%emt 0:00:27]} Bc8 {[%emt 0:00:02]} 30. Ne7 {[%emt 0:00:07]} Bb4 {[%emt 0:00:38]} 31. Nxc8 {[%emt 0:00:27]} Bxc5 {[%emt 0:00:01]} 32. Kf1 {[%emt 0:01:43]} Ne5 {[%emt 0:00:04]} 33. f3 {[%emt 0:00:13]} Kf6 {[%emt 0:00:07]} 34. Ke2 {[%emt 0:00:15]} f4 {[%emt 0:00:28]} 35. Bb3 {[%emt 0:00:30]} g5 {[%emt 0:00:43]} 36. Bd5 {[%emt 0:00:11]} h5 {[%emt 0:00:38]} 37. Bb3 {[%emt 0:00:02]} g4 {[%emt 0:00:47]} 38. fxg4 {[%emt 0:00:10]} hxg4 {[%emt 0:00:02]} 39. Bd5 {[%emt 0:00:19]} Nd7 {[%emt 0:00:42]} 40. Kd3 {[%emt 0:00:11]} Ke5 {[%emt 0:00:07]} 41. Bc6 {[%emt 0:00:08]} Nf6 {[%emt 0:00:10]} 42. Kc4 {[%emt 0:00:01]} Bg1 {[%emt 0:00:20]} 43. h3 {[%emt 0:00:05]} gxh3 {[%emt 0:00:10]} 44. gxh3 {[%emt 0:00:02]} Ne4 {[%emt 0:00:14]} 45. Kd3 {[%emt 0:00:33]} Nf2+ {[%emt 0:00:24]} 46. Ke2 {[%emt 0:00:02]} Nxh3 {[%emt 0:00:03]} 47. Bb7 {[%emt 0:00:21]} a5 {[%emt 0:00:00]} 0-1

[Event "Asian Amateur Rapid 2024"]
[Site "Al Ain"]
[Date "2024.12.15"]
[Round "3.20"]
[White "Atharv Bansal"]
[Black "Abdulla Younes Alkhemeiri"]
[Result "1-0"]
[ECO "B08"]
[WhiteElo "1896"]
[BlackElo "1547"]
[Annotator "NA RC"]
[PlyCount "45"]
[EventDate "2024.12.15"]
[EventType "swiss"]
[EventCountry "UAE"]
[SourceTitle "playchess.com"]
[Source "ChessBase"]
[SourceQuality "1"]
[TimeControl "900+10"]

1. e4 {[%emt 0:00:03]} d6 {[%emt 0:00:01]} 2. d4 {[%emt 0:00:05]} Nf6 {[%emt 0:00:02]} 3. Nc3 {[%emt 0:00:03]} g6 {[%emt 0:00:01]} 4. Nf3 {[%emt 0:00:04]} Bg7 {[%emt 0:00:10]} 5. h3 {[%emt 0:00:03]} Nbd7 {[%emt 0:00:31]} 6. Bc4 {[%emt 0:00:21]} c5 {[%emt 0:00:04]} 7. dxc5 {[%emt 0:00:25]} Nxc5 {[%emt 0:00:17]} 8. e5 {[%emt 0:00:28]} Ng8 {[%emt 0:02:37]} 9. O-O {[%emt 0:00:16]} Nh6 {[%emt 0:02:39]} 10. exd6 {[%emt 0:00:54]} Qxd6 {[%emt 0:00:17]} 11. Qxd6 {[%emt 0:00:03]} exd6 {[%emt 0:00:01]} 12. Bxh6 {[%emt 0:00:01]} Bxh6 {[%emt 0:00:17]} 13. Nb5 {[%emt 0:00:01]} Kd7 {[%emt 0:00:53]} 14. Rad1 {[%emt 0:00:47]} Ne4 {[%emt 0:01:18]} 15. Ne5+ {[%emt 0:00:47]} Ke7 {[%emt 0:08:32]} 16. Nxf7 {[%emt 0:00:19]} Be6 {[%emt 0:00:00]} 17. Bxe6 {[%emt 0:00:03]} Kxe6 {[%emt 0:00:00]} 18. Nxh6 {[%emt 0:00:01]} Kf6 {[%emt 0:00:00]} 19. Rfe1 {[%emt 0:00:10]} Kg7 {[%emt 0:00:00]} 20. Rxe4 {[%emt 0:00:04]} Kxh6 {[%emt 0:00:00]} 21. Rxd6 {[%emt 0:00:01]} a6 {[%emt 0:00:00]} 22. Nd4 {[%emt 0:00:01]} Rad8 {[%emt 0:00:00]} 23. Ne6 {[%emt 0:00:09]} 1-0

[Event "Asian Amateur Rapid 2024"]
[Site "Al Ain"]
[Date "2024.12.15"]
[Round "3.21"]
[White "Muhammad Saifan Noushad Ibrahi"]
[Black "Dadabaev, Zhanybek"]
[Result "0-1"]
[ECO "B22"]
[WhiteElo "1534"]
[BlackElo "1927"]
[Annotator "RC"]
[PlyCount "94"]
[EventDate "2024.12.15"]
[EventType "swiss"]
[EventCountry "UAE"]
[SourceTitle "playchess.com"]
[Source "ChessBase"]
[SourceQuality "1"]
[TimeControl "900+10"]

1. e4 {[%emt 0:00:02]} c5 {[%emt 0:00:02]} 2. Nf3 {[%emt 0:00:02]} Nc6 {[%emt 0:00:01]} 3. c3 {[%emt 0:00:01]} d5 {[%emt 0:00:02]} 4. exd5 {[%emt 0:00:03]} Qxd5 {[%emt 0:00:01]} 5. d4 {[%emt 0:00:01]} Bg4 {[%emt 0:00:03]} 6. Be2 {[%emt 0:00:02]} e6 {[%emt 0:00:23]} 7. h3 {[%emt 0:00:02]} Bh5 {[%emt 0:00:02]} 8. Be3 {[%emt 0:00:09]} cxd4 {[%emt 0:00:02]} 9. cxd4 {[%emt 0:00:02]} Nf6 {[%emt 0:00:42]} 10. Nc3 {[%emt 0:00:02]} Qd6 {[%emt 0:00:02]} 11. Rc1 {[%emt 0:00:06]} Be7 {[%emt 0:01:24]} 12. Qa4 {[%emt 0:00:09]} O-O {[%emt 0:00:18]} 13. O-O {[%emt 0:00:04]} a6 {[%emt 0:00:19]} 14. a3 {[%emt 0:01:24]} b5 {[%emt 0:01:01]} 15. Qb3 {[%emt 0:00:09]} Rac8 {[%emt 0:00:58]} 16. Rfd1 {[%emt 0:00:20]} Na5 {[%emt 0:00:36]} 17. Qa2 {[%emt 0:00:21]} Nc4 {[%emt 0:00:02]} 18. b4 {[%emt 0:01:50]} Nxe3 {[%emt 0:00:10]} 19. fxe3 {[%emt 0:00:03]} Qg3 {[%emt 0:00:48]} 20. e4 {[%emt 0:00:29]} Rxc3 {[%emt 0:00:22]} 21. Rxc3 {[%emt 0:00:35]} Nxe4 {[%emt 0:00:01]} 22. Rc2 {[%emt 0:01:17]} Bd6 {[%emt 0:01:07]} 23. Ne5 {[%emt 0:02:23]} Bxe2 {[%emt 0:00:37]} 24. Rxe2 {[%emt 0:00:02]} Nc3 {[%emt 0:00:01]} 25. Rd3 {[%emt 0:00:06]} Qxd3 {[%emt 0:02:17]} 26. Nxd3 {[%emt 0:00:12]} Nxa2 {[%emt 0:00:02]} 27. Rxa2 {[%emt 0:00:02]} Rd8 {[%emt 0:01:28]} 28. Kf2 {[%emt 0:00:22]} g5 {[%emt 0:01:39]} 29. Rc2 {[%emt 0:01:02]} Bh2 {[%emt 0:00:19]} 30. g3 {[%emt 0:00:40]} Rxd4 {[%emt 0:00:29]} 31. Rc3 {[%emt 0:00:59]} e5 {[%emt 0:00:42]} 32. Nxe5 {[%emt 0:01:40]} Rd2+ {[%emt 0:00:01]} 33. Kf1 {[%emt 0:00:59]} Rd1+ {[%emt 0:01:21]} 34. Kg2 {[%emt 0:00:39]} Rd2+ {[%emt 0:00:01]} 35. Kf1 {[%emt 0:00:01]} Ra2 {[%emt 0:00:32]} 36. Ng4 {[%emt 0:00:44]} Ra1+ {[%emt 0:00:22]} 37. Kg2 {[%emt 0:00:07]} Bg1 {[%emt 0:00:05]} 38. Nh6+ {[%emt 0:00:45]} Kg7 {[%emt 0:00:21]} 39. Nf5+ {[%emt 0:00:02]} Kf6 {[%emt 0:00:34]} 40. g4 {[%emt 0:00:35]} Ke5 {[%emt 0:00:19]} 41. Kf3 {[%emt 0:00:54]} Bd4 {[%emt 0:00:27]} 42. Rb3 {[%emt 0:00:45]} Rf1+ {[%emt 0:00:25]} 43. Ke2 {[%emt 0:00:08]} Rf2+ {[%emt 0:00:02]} 44. Ke1 {[%emt 0:00:26]} Rh2 {[%emt 0:00:05]} 45. Kf1 {[%emt 0:00:10]} h5 {[%emt 0:00:05]} 46. Nh6 {[%emt 0:00:34]} Ke4 {[%emt 0:00:18]} 47. Nxf7 {[%emt 0:00:08]} Rf2+ {[%emt 0:00:01]} 0-1

[Event "Asian Amateur Rapid 2024"]
[Site "Al Ain"]
[Date "2024.12.15"]
[Round "3.22"]
[White "Al Abdali, Zeyad Saleh"]
[Black "Aamer Saeed, Alyileili"]
[Result "0-1"]
[ECO "D36"]
[WhiteElo "1744"]
[BlackElo "1619"]
[Annotator "NA RC"]
[PlyCount "27"]
[EventDate "2024.12.15"]
[EventType "swiss"]
[EventCountry "UAE"]
[SourceTitle "playchess.com"]
[Source "ChessBase"]
[SourceQuality "1"]
[TimeControl "900+10"]

1. d4 {[%emt 0:00:35]} d5 {[%emt 0:15:20]} 2. c4 {[%emt 0:00:01]} e6 {[%emt 0:00:00]} 3. Nc3 {[%emt 0:00:02]} Nf6 {[%emt 0:00:00]} 4. cxd5 {[%emt 0:00:05]} exd5 {[%emt 0:00:00]} 5. Bg5 {[%emt 0:00:08]} Be7 {[%emt 0:00:00]} 6. e3 {[%emt 0:00:02]} O-O {[%emt 0:00:00]} 7. Bd3 {[%emt 0:00:03]} h6 {[%emt 0:00:00]} 8. Bh4 {[%emt 0:00:07]} c6 {[%emt 0:00:00]} 9. h3 {[%emt 0:00:46]} Re8 {[%emt 0:00:00]} 10. Nf3 {[%emt 0:00:12]} Ne4 {[%emt 0:00:00]} 11. Bxe7 {[%emt 0:00:34]} Qxe7 {[%emt 0:00:00]} 12. O-O {[%emt 0:00:09]} Nd7 {[%emt 0:00:00]} 13. Qc2 {[%emt 0:00:36]} Nd6 {[%emt 0:00:00]} 14. Rfe1 {[%emt 0:02:24]} 0-1

[Event "Asian Amateur Rapid 2024"]
[Site "Al Ain"]
[Date "2024.12.15"]
[Round "3.23"]
[White "Saud Bader Huwair Alzarooni"]
[Black "Adel, Tahseen Khalil"]
[Result "0-1"]
[ECO "B22"]
[WhiteElo "1644"]
[BlackElo "1833"]
[Annotator "NA RC"]
[PlyCount "107"]
[EventDate "2024.12.15"]
[EventType "swiss"]
[EventCountry "UAE"]
[SourceTitle "playchess.com"]
[Source "ChessBase"]
[SourceQuality "1"]
[TimeControl "900+10"]

1. e4 {[%emt 0:00:01]} c5 {[%emt 0:00:01]} 2. c3 {[%emt 0:00:01]} Nf6 {[%emt 0:00:02]} 3. e5 {[%emt 0:00:02]} Nd5 {[%emt 0:00:01]} 4. Nf3 {[%emt 0:00:01]} Nc6 {[%emt 0:00:02]} 5. Bc4 {[%emt 0:00:03]} e6 {[%emt 0:00:02]} 6. Qe2 {[%emt 0:00:10]} Be7 {[%emt 0:00:37]} 7. d4 {[%emt 0:00:04]} cxd4 {[%emt 0:00:35]} 8. cxd4 {[%emt 0:00:02]} d6 {[%emt 0:00:16]} 9. O-O {[%emt 0:00:05]} Nb6 {[%emt 0:00:24]} 10. Bb3 {[%emt 0:00:11]} O-O {[%emt 0:00:16]} 11. a3 {[%emt 0:00:04]} Qc7 {[%emt 0:01:00]} 12. Nc3 {[%emt 0:00:13]} a6 {[%emt 0:00:57]} 13. Qe4 {[%emt 0:00:07]} d5 {[%emt 0:00:09]} 14. Qg4 {[%emt 0:00:02]} f6 {[%emt 0:00:57]} 15. exf6 {[%emt 0:00:29]} Rxf6 {[%emt 0:00:16]} 16. Qh5 {[%emt 0:00:38]} Bd7 {[%emt 0:01:21]} 17. Bc2 {[%emt 0:00:10]} h6 {[%emt 0:00:19]} 18. Re1 {[%emt 0:00:42]} Raf8 {[%emt 0:00:41]} 19. Bg6 {[%emt 0:04:38]} Bd6 {[%emt 0:01:24]} 20. Bg5 {[%emt 0:01:10]} Rxg6 {[%emt 0:01:03]} 21. Qxg6 {[%emt 0:00:03]} Be8 {[%emt 0:00:02]} 22. Qxe6+ {[%emt 0:00:09]} Bf7 {[%emt 0:00:04]} 23. Qf5 {[%emt 0:02:47]} hxg5 {[%emt 0:00:37]} 24. Nxg5 {[%emt 0:00:03]} g6 {[%emt 0:00:01]} 25. Qh3 {[%emt 0:00:18]} Be8 {[%emt 0:02:18]} 26. Re6 {[%emt 0:00:06]} Bf4 {[%emt 0:01:46]} 27. Rae1 {[%emt 0:01:37]} Bxg5 {[%emt 0:01:20]} 28. Rxe8 {[%emt 0:00:03]} Qf7 {[%emt 0:01:35]} 29. Rxf8+ {[%emt 0:01:00]} Qxf8 {[%emt 0:00:02]} 30. Qg4 {[%emt 0:03:27]} Qf5 {[%emt 0:00:48]} 31. Re8+ {[%emt 0:00:36]} Kf7 {[%emt 0:00:11]} 32. Qe2 {[%emt 0:00:58]} Nxd4 {[%emt 0:00:16]} 33. Qe1 {[%emt 0:00:01]} Nc2 {[%emt 0:00:09]} 34. Qe2 {[%emt 0:00:10]} d4 {[%emt 0:01:04]} 35. Rb8 {[%emt 0:00:12]} dxc3 {[%emt 0:00:09]} 36. Qe8+ {[%emt 0:00:10]} Kf6 {[%emt 0:00:10]} 37. Qh8+ {[%emt 0:00:18]} Ke6 {[%emt 0:00:07]} 38. Qe8+ {[%emt 0:00:19]} Be7 {[%emt 0:00:05]} 39. Rxb7 {[%emt 0:00:02]} Nd5 {[%emt 0:00:16]} 40. Qg8+ {[%emt 0:00:19]} Qf7 {[%emt 0:00:04]} 41. Qc8+ {[%emt 0:00:02]} Kf6 {[%emt 0:00:04]} 42. bxc3 {[%emt 0:00:05]} Kg7 {[%emt 0:00:14]} 43. Rb8 {[%emt 0:00:02]} Bf8 {[%emt 0:00:07]} 44. Rb7 {[%emt 0:00:06]} Ne7 {[%emt 0:00:05]} 45. Qg4 {[%emt 0:00:37]} Qd5 {[%emt 0:00:07]} 46. Rd7 {[%emt 0:00:08]} Qf5 {[%emt 0:00:21]} 47. Qd1 {[%emt 0:00:14]} Nxa3 {[%emt 0:00:23]} 48. h4 {[%emt 0:00:02]} Nb5 {[%emt 0:00:05]} 49. c4 {[%emt 0:00:12]} Nc3 {[%emt 0:00:04]} 50. Qd4+ {[%emt 0:00:02]} Qf6 {[%emt 0:00:01]} 51. Qd3 {[%emt 0:00:22]} Na4 {[%emt 0:00:11]} 52. h5 {[%emt 0:00:02]} Nc5 {[%emt 0:00:02]} 53. h6+ {[%emt 0:00:06]} Kh7 {[%emt 0:00:05]} 54. Qd4 {[%emt 0:00:10]} 0-1